Workbook

Sheet Table rentabilité optimisé
B2: ETUDE RENTABILITE SOLUTIONS USAGE PRODUCTIF
B3: MACHINE A GLACE
B5: Dimmensionnement réel
B6: Dimmensionnement optimisé
B7: Dimmensionnement réel
B10: Cases à vérifier
B11: Cases à compléter
B12: Cases à laisser vides
B13: Cases calculées
B15: Caractéristiques techniques du Projet
B17: Usage Productif | C17: Rendement (kg/jour) | D17: Puissance (kW) | F17: Prix (FCFA) | G17: Energie consommée (KWh/j) | H17: Energie à produire (kWh/j) | I17: Fonctionnement optimal | K17: Coefficient déperdition (k)
D18: Max | E18: Nominale | I18: heures par jour | J18: jours à l'année
B19: Machine à glace ZIEGRA ZBE 375 | C19: =16*I19 -> 256 | D19: - | E19: 1.7 | F19: 5100000 | G19: =E19*I19 -> 27.2 | H19: =E19*I19/K19 -> 34 | I19: 16 | J19: 365 | K19: 0.8
B20: Machine à glace ZIEGRA ZBE 750 | C20: =31*I20 -> 496 | D20: - | E20: 3.1 | F20: 11000000 | G20: =E20*I20 -> 49.6 | H20: =E20*I20/K20 -> 62 | I20: 16 | J20: 365 | K20: 0.8
B21: Machine à glace ZIEGRA ZBE 1000 | C21: =41.5*I21 -> 664 | D21: - | E21: 4.3 | F21: 14000000 | G21: =E21*I21 -> 68.8 | H21: =E21*I21/K21 -> 86 | I21: 16 | J21: 365 | K21: 0.8
B25: Usage Productif - complément | C25: Puissance (kW) | D25: Nombre | E25: Consommation énergétique (kWh/jour) | F25: Fonctionnement | G25: Prix (FCFA)
F26: h/jour
B27: Kit Lorentz PS150 pompe | C27: 0.15 | D27: 1 | E27: - | F27: - | G27: 1403000
B28: Pompe supresseur et cables | C28: 1.13 | D28: 1 | E28: =C28*F28 -> 1.695 | F28: 1.5 | G28: 550000
B29: Ballon Supresseur | C29: 0 | D29: 1 | E29: 0 | F29: 0 | G29: 225000
B30: Refroidisseur | C30: 0.1 | D30: 1 | E30: 0.15 | F30: 1.5 | G30: 415000
B31: Ventilateurs | C31: 0.065 | D31: 1 | E31: 0.52 | F31: 8 | G31: 15000
B32: Lampes | C32: 0.012 | D32: 8 | E32: 0.144 | F32: 12 | G32: 2500
B33: Ensemble prise téléphones | C33: 0.1 | D33: 1 | E33: 1.2 | F33: 12 | G33: 32750
B34: Kit Congélateur solaire (240L) et hacheur | C34: 0.25 | D34: 1 | E34: - | F34: -
B36: Parafoudre | D36: 2 | G36: 12510
B37: Puit | D37: 1 | G37: 500000
B38: Local technique | D38: 1 | G38: 2206450
B39: Câbles et accessoires | D39: 1 | G39: 250000
B40: Installation & transport équipements | D40: 1 | G40: 1374000
B41: Support alluminium | D41: - | G41: 17000
B43: Alimentation Solaire | C43: Puissance (kW) | D43: Prix (FCFA) | E43: Coefficient déperdition | F43: Tension (V) | H43: Batteries | I43: Capacité (Ampères/h) | J43: Prix (FCFA) | K43: Tension (V) | L43: Durée de vie* | M43: * en conditions optimales, annoncées constructeur
B44: Modules polycristallins 275 W | C44: 0.275 | D44: 50000 | E44: 0.6 | F44: 24V | H44: OPzV 2V | I44: 500 | J44: 136000 | K44: 2 | L44: 10
B45: Modules polycristallins 300 W | H45: Gel 220Ah 12V | I45: 220 | J45: 360250 | K45: 12 | L45: 10
B46: Tension nécessaire | C46: =IF(J46<0.5,"12V",IF(AND(J46>=0.5,J46<2),"24V",IF(J46>=2,"48V"))) -> 48V | H46: Tension nécessaire batteries | I46: =IF(J46<0.5,12,IF(AND(J46>=0.5,J46<2),24,IF(J46>=2,48))) -> 48 | J46: =F102*INDEX(C:C,MATCH(F76,B:B,0)) -> 6.325
B48: Onduleur | C48: kVa | D48: Prix (FCFA) | H48: Régulateur | I48: tension /courant | J48: Prix (FCFA) | K48: Tension (V)
B49: Victron quatro 5 kW | C49: 5 | D49: 1426500 | H49: VICTRON MPPT 150/85 | I49: 150V/85A | J49: 315000 | K49: 12V/24V/48V
B50: Victron 8KW | C50: 8 | H50: VICTRON MPPT 100/50 | I50: 100V/50A | K50: 12V/24V/48V
B52: Irradiation Solaire
B53: Month | C53: Jan | D53: Feb | E53: Mar | F53: Apr | G53: May | H53: Jun | I53: Jul | J53: Aug | K53: Sep | L53: Oct | M53: Nov | N53: Dec | O53: Year
B54: H(15)* | C54: 5.12 | D54: 5.75 | E54: 6.37 | F54: 6.61 | G54: 6.34 | H54: 6.05 | I54: 6.26 | J54: 5.51 | K54: 6.03 | L54: 5.81 | M54: 5.226 | N54: 5.03 | O54: 6.01
B56: Électricité du réseau | D56: 1ère Tranche | E56: 2ème Tranche | F56: 3ème Tranche | J56: 1ère Tranche | K56: 2ème Tranche | L56: 3ème Tranche | M56: Total
B57: UP-Petite Puissance | C57: Tranche (KWh) | D57: 50 | E57: 500 | F57: ∞ | H57: UP-Petite Puissance | I57: Energie par Tranche | J57: =(F91*30)-SUM(K57:L57) -> 50 | K57: =IF((F91*30)>D57,(F91*30)-D57-L57,0) -> 450 | L57: =IF((F91*30)>E57,(F91*30)-E57,0) -> 427.27 | M57: =SUM(J57:L57) -> 927.27
C58: Prix (KWh) | D58: 128.85 | E58: 135.68 | F58: 147.68 | I58: Coût (FCFA) | J58: =J57*D58 -> 6442.5 | K58: =K57*E58 -> 61056 | L58: =L57*F58 -> 63099.2336 | M58: =SUM(J58:L58) -> 130597.7336
B59: UP-Moyenne Puissance | C59: Tranche | D59: 100 | E59: 500 | F59: ∞ | H59: UP-Moyenne Puissance | I59: Energie par Tranche | J59: =(F91*30)-SUM(K59:L59) -> 100 | K59: =IF((F91*30)>D59,(F91*30)-D59-L59,0) -> 400 | L59: =IF((F91*30)>E59,(F91*30)-E59,0) -> 427.27 | M59: =SUM(J59:L59) -> 927.27
C60: Prix (KWh) | D60: 129.81 | E60: 136.53 | F60: 149.24 | I60: Coût (FCFA) | J60: =J59*D60 -> 12981 | K60: =K59*E60 -> 54612 | L60: =L59*F60 -> 63765.7748 | M60: =SUM(J60:L60) -> 131358.7748
B62: Frais fixes de raccordement | C62: Fixe/Distance | D62: Prix TTC | E62: Étude raccordement
B63: Réseau HTA | C63: Kg câble | D63: 10.000 à 100.000 | E63: 550000
B64: Réseau HTA - Autres Frais | C64: Fixe | D64: 2.000.000 à 7.000.000 | E64: 550000
B65: Transformateur HT/MT - BT | C65: Fixe | D65: 4800000 | E65: 179000
B66: Extension BT* | C66: Distance | D66: 8260 | E66: 179000
B67: Dépend également de la distance de transport des équipements et nombre et type de poteaux non mesurable sauf par Sénélec (approximation)
B70: Choix de dimensionnement du projet
B72: Production min. souhaitée (kg glace/jour) | F72: 1
B73: Répartition clients pêcheurs/particuliers/autre | F73: 0.7 | G73: 0.15 | H73: =100%-(F73+G73) -> 0.15
B75: Choix de la machine à glace | F75: Machine à glace ZIEGRA ZBE 375
B76: Choix de l'alimentation solaire | F76: Modules polycristallins 275 W
B77: Choix du système de stokage | F77: OPzV 2V
B78: Choix de l'onduleur | F78: Victron quatro 5 Kw
B79: Choix du régulateur | F79: VICTRON MPPT 150/85
B80: Equivalent Réseau | F80: =IF(M57<M59,B57,B59) -> UP-Moyenne Puissance
B81: Raccordement nécessaire (MT, BT) et distance | F81: MT | G81: 500
B82: Montant Frais HTA et KG câble | F82: 4462549 | G82: 30
B84: Autonomie nécessaires au projet (jours) | F84: 1
B85: Profondeur décharge batteries | F85: 0.8
B87: Choix du cas pour dimensionnement solaire | F87: best case
F88: worst case
F89: average | G89: x
B91: Energie journalière consommée (KWh) | F91: =SUM(E27:E34)+INDEX(G:G,MATCH(F75,B:B,0)) -> 30.909 | G91: KWh
B92: Puissance crête projet (KW) | F92: =(INDEX(H:H,MATCH(F75,B:B,0))+SUM(E28:E33))/O54*F95 -> 6.27437604 | G92: KW
B93: Capacité totale système stockage (Ampères/heure) | F93: =(INDEX(G:G,MATCH(F75,B:B,0))+SUM(E28:E33))*1000*(F84)/(F85*I46) -> 804.921875 | G93: Ah
B95: Nb de machines à glace | F95: =ROUNDUP(F72/(C19),0) -> 1 | G95: unités
B96: Puissance equippement journaliere majoré (KW) | F96: =(INDEX(E:E,MATCH(F75,B:B,0))+SUM(C27:C34))*1.2 -> 4.2084
B97: Nb Kit Lorentz pour pompage | F97: =D27 -> 1 | G97: unités
B98: Kit Congélateur solaire (240L) et hacheur | F98: =D34 -> 1 | G98: unités
B99: Nb lampes | F99: =D32 -> 8 | G99: unités
B100: Nb ensemble prises | F100: =D33 -> 1 | G100: unités
B101: Nb de ventilateurs | F101: =D31 -> 1 | G101: unités
B102: Nb de panneaux solaires | F102: =ROUNDUP(F92/INDEX(C:C,MATCH(F76,B:B,0)),0) -> 23 | G102: unités
B103: Nb de batteries en série | F103: =I46/INDEX(K:K,MATCH(F77,H:H,0)) -> 24 | G103: unités
B104: Nb de batteries en dérivation | F104: =ROUNDUP(F93/INDEX(I:I,MATCH(F77,H:H,0)),0) -> 2 | G104: unités
B105: Nb de batteries total | F105: =F103*F104 -> 48 | G105: unités
B106: Durée de vie attendue de la batterie | F106: 7 | G106: ans
B107: Nb régulateurs | F107: =IF(OR(C46=24,C46=12),1,2) -> 2 | G107: unités
B108: Nb onduleurs | F108: =ROUNDUP(F96/INDEX(C:C,MATCH(F78,B:B,0)),0) -> 1 | G108: unités
B110: Ratio de fonctionnement | F110: 0.9
B111: Employés nécessaires pour fonctionnement | F111: 4 | G111: personnes
B112: Extrant annuel attendu en glace | F112: =INDEX(C:C,MATCH($F$75,B:B,0))*INDEX(J:J,MATCH($F$75,B:B,0))*F110*F95 -> 84096 | G112: Kilos
B113: Intrant annuel attendu en eau | F113: =F112 -> 84096 | G113: Litres
B115: Calcul de charges variables et fixes
B117: CHARGES VARIABLES D'EXPLOITATION
B118: Désignation | C118: Quantité | E118: Prix unitaire | F118: Montant total/an | G118: Montant total/mois | H118: évolution annuelle charges d'exploitation | K118: 0.02
B119: Transport Glace vers port pêche | C119: =(F112*F73)/25 -> 2354.688 | D119: bacs | E119: 0 | F119: =E119*C119 -> 0 | G119: =F119/12 -> 0
B120: - | F120: =E120*C120 -> 0 | G120: =F120/12 -> 0 | H120: Avantage coût électricité PV vs. Réseau | J120: Sur 1 an | K120: =((MIN(M60,M58)*12)+IF(F81="MT",(G81*D66)+D65+E63+F82,(G81*D66)))-(SUM(F144:F149,F154)+SUM(G144:G149,G154)) -> 6217148.089
B121: Crédit télephonique | C121: 1 | D121: forfait | E121: 10000 | F121: =E121*12 -> 120000 | G121: =F121/12 -> 10000 | J121: Sur 5 ans | K121: =((MIN(M60,M58)*12*5)+IF(F81="MT",(G81*D66)+D65+E63+F82,(G81*D66)))-(SUM(F144:F149,F154)+(SUM(G144:G149,G154)*5)) -> 9429624.445
B122: Salaires | C122: 3 | D122: =G111 -> personnes | E122: 40000 | F122: =E122*C122*12 -> 1440000 | G122: =F122/12 -> 120000 | J122: Sur 10 ans | K122: =((MIN(M60,M58)*12*10)+IF(F81="MT",(G81*D66)+D65+E63+F82,(G81*D66)))-(SUM(F144:F149,F154)+(SUM(G144:G149,G154)*10)) -> 13445219.89
B123: TOTAL (F CFA) | F123: =SUM(F119:F122) -> 1560000 | G123: =SUM(G119:G122) -> 130000
B125: INVESTISSEMENTS
B126: Désignation | C126: Quantité | D126: Prix unitaire TTC | E126: Durée de vie (an) | F126: Montant Total TTC | G126: Amortissement annuel
B127: Machine à glace | C127: =IF($B$5=INDEX($B$6:$B$7,1,1),F95,'investissement réel'!C4) -> 1 | D127: =IF($B$5=INDEX($B$6:$B$7,1,1),INDEX(F:F,MATCH(F75,B:B,0)),'investissement réel'!E4) -> 5100000 | E127: 10 | F127: =C127*D127 -> 5100000 | G127: =IFERROR(F127/E127,0) -> 510000
B128: Kit Lorentz PS150 Pompe | C128: =IF($B$5=INDEX($B$6:$B$7,1,1),F97,'investissement réel'!C5) -> 1 | D128: =IF($B$5=INDEX($B$6:$B$7,1,1),G27,'investissement réel'!D5) -> 1403000 | E128: 10 | F128: =C128*D128 -> 1403000 | G128: 140300
B129: Kit congélateur solaire | C129: =IF($B$5=INDEX($B$6:$B$7,1,1),F98,'investissement réel'!C6) -> 1 | D129: =IF($B$5=INDEX($B$6:$B$7,1,1),G34,'investissement réel'!D6) -> 1248000 | E129: 10 | F129: 1248000 | G129: 124800
B130: Pompe surpresseur | C130: =IF($B$5=INDEX($B$6:$B$7,1,1),D28,'investissement réel'!C7) -> 1 | D130: =IF($B$5=INDEX($B$6:$B$7,1,1),G28,'investissement réel'!D7) -> 550000 | E130: 10 | F130: 550000 | G130: 55000
B131: Ballon surpresseur | C131: =IF($B$5=INDEX($B$6:$B$7,1,1),D29,'investissement réel'!C8) -> 1 | D131: =IF($B$5=INDEX($B$6:$B$7,1,1),G29,'investissement réel'!D8) -> 225000 | E131: 10 | F131: 225000 | G131: 22500
B132: Refroidisseur | C132: =IF($B$5=INDEX($B$6:$B$7,1,1),D30,'investissement réel'!C9) -> 1 | D132: =IF($B$5=INDEX($B$6:$B$7,1,1),G30,'investissement réel'!D9) -> 415000 | E132: 10 | F132: 415000 | G132: 41500
B133: Puits | C133: =IF($B$5=INDEX($B$6:$B$7,1,1),D37,'investissement réel'!C10) -> 1 | D133: =IF($B$5=INDEX($B$6:$B$7,1,1),G37,'investissement réel'!D10) -> 500000 | F133: 500000 | G133: 0
B134: Local technique | C134: =IF($B$5=INDEX($B$6:$B$7,1,1),D38,'investissement réel'!C11) -> 1 | D134: =IF($B$5=INDEX($B$6:$B$7,1,1),G38,'investissement réel'!D11) -> 2206450 | F134: =C134*D134*I134 -> 882580 | G134: 0 | H134: Part des locaux dédiée au projet | I134: 0.4
B135: briques en banco + transport | C135: =IF($B$5=INDEX($B$6:$B$7,1,1),96,'investissement réel'!C12) -> 27 | D135: =IF($B$5=INDEX($B$6:$B$7,1,1),G33,'investissement réel'!D12) -> 50000
B136: briques en ciment + transport | C136: =IF($B$5=INDEX($B$6:$B$7,1,1),96,'investissement réel'!C13) -> 27 | D136: =IF($B$5=INDEX($B$6:$B$7,1,1),G34,'investissement réel'!D13) -> 17000
B137: Fer et ciment structure | C137: =IF($B$5=INDEX($B$6:$B$7,1,1),96,'investissement réel'!C14) -> 24 | D137: =IF($B$5=INDEX($B$6:$B$7,1,1),G35,'investissement réel'!D14) -> 136000
B138: Zinc et ciment structure | C138: =IF($B$5=INDEX($B$6:$B$7,1,1),96,'investissement réel'!C15) -> 2 | D138: =IF($B$5=INDEX($B$6:$B$7,1,1),G36,'investissement réel'!D15) -> 315000
B139: Rogniers (11 palmiers) | C139: =IF($B$5=INDEX($B$6:$B$7,1,1),96,'investissement réel'!C16) -> 1 | D139: =IF($B$5=INDEX($B$6:$B$7,1,1),G37,'investissement réel'!D16) -> 1426500
B140: Maconnerie | C140: =IF($B$5=INDEX($B$6:$B$7,1,1),96,'investissement réel'!C17) -> 2 | D140: =IF($B$5=INDEX($B$6:$B$7,1,1),G38,'investissement réel'!D17) -> 12510
B141: Charpenterie | C141: =IF($B$5=INDEX($B$6:$B$7,1,1),96,'investissement réel'!C18) -> 1 | D141: =IF($B$5=INDEX($B$6:$B$7,1,1),G39,'investissement réel'!D18) -> 15000
B142: Coquillages | C142: =IF($B$5=INDEX($B$6:$B$7,1,1),96,'investissement réel'!C19) -> 8 | D142: =IF($B$5=INDEX($B$6:$B$7,1,1),G40,'investissement réel'!D19) -> 2500
B143: Autres équipements & frais | C143: =IF($B$5=INDEX($B$6:$B$7,1,1),96,'investissement réel'!C20) -> 1 | D143: =IF($B$5=INDEX($B$6:$B$7,1,1),G41,'investissement réel'!D20) -> 32750
B144: Modules PV | C144: =IF($B$5=INDEX($B$6:$B$7,1,1),F102,'investissement réel'!C12) -> 27 | D144: =IF($B$5=INDEX($B$6:$B$7,1,1),INDEX(D:D,MATCH(F76,B:B,0)),'investissement réel'!D12) -> 50000 | E144: 20 | F144: 1350000 | G144: =IFERROR(F144/E144,0) -> 67500
B145: Support aluminium | C145: =IF($B$5=INDEX($B$6:$B$7,1,1),C144,'investissement réel'!C13) -> 27 | D145: =IF($B$5=INDEX($B$6:$B$7,1,1),G41,'investissement réel'!D13) -> 17000 | E145: 20 | F145: =C145*D145 -> 459000 | G145: 22950
B146: Batterie | C146: =IF($B$5=INDEX($B$6:$B$7,1,1),F105,'investissement réel'!C14) -> 24 | D146: =IF($B$5=INDEX($B$6:$B$7,1,1),INDEX(J:J,MATCH(F77,H:H,0)),'investissement réel'!D14) -> 136000 | E146: =F106 -> 7 | F146: 3264000 | G146: 466285.7143
B147: Régulateur | C147: =IF($B$5=INDEX($B$6:$B$7,1,1),F107,'investissement réel'!C15) -> 2 | D147: =IF($B$5=INDEX($B$6:$B$7,1,1),INDEX(J:J,MATCH(F79,H:H,0)),'investissement réel'!D15) -> 315000 | E147: 10 | F147: 630000 | G147: 63000
B148: Onduleur | C148: =IF($B$5=INDEX($B$6:$B$7,1,1),F108,'investissement réel'!C16) -> 1 | D148: =IF($B$5=INDEX($B$6:$B$7,1,1),INDEX(D:D,MATCH(F78,B:B,0)),'investissement réel'!D16) -> 1426500 | E148: 10 | F148: 1426500 | G148: 142650
B149: Parafoudre | C149: =IF($B$5=INDEX($B$6:$B$7,1,1),D36,'investissement réel'!C17) -> 2 | D149: =IF($B$5=INDEX($B$6:$B$7,1,1),G36,'investissement réel'!D17) -> 12510 | E149: 15 | F149: 25020 | G149: 1668
B150: Ventilateurs | C150: =IF($B$5=INDEX($B$6:$B$7,1,1),D31,'investissement réel'!C18) -> 1 | D150: =IF($B$5=INDEX($B$6:$B$7,1,1),G31,'investissement réel'!D18) -> 15000 | E150: 10 | F150: 15000 | G150: 1500
B151: Lampes | C151: =IF($B$5=INDEX($B$6:$B$7,1,1),F99,'investissement réel'!C19) -> 8 | D151: =IF($B$5=INDEX($B$6:$B$7,1,1),G32,'investissement réel'!D19) -> 2500 | E151: 1 | F151: =C151*D151 -> 20000 | G151: 20000
B152: Ensemble prise téléphones | C152: =IF($B$5=INDEX($B$6:$B$7,1,1),D33,'investissement réel'!C20) -> 1 | D152: =IF($B$5=INDEX($B$6:$B$7,1,1),G33,'investissement réel'!D20) -> 32750 | E152: 15 | F152: 32750 | G152: 2183.333333
B153: Câbles et accessoires (dijoncteur AC/DC, demarreur electronotique) | C153: =IF($B$5=INDEX($B$6:$B$7,1,1),D39,'investissement réel'!C21) -> 1 | D153: =IF($B$5=INDEX($B$6:$B$7,1,1),G39,'investissement réel'!D21) -> 250000 | E153: 20 | F153: 250000 | G153: 12500
B154: Installation & transport équipements | C154: =IF($B$5=INDEX($B$6:$B$7,1,1),D40,'investissement réel'!C22) -> 1 | D154: =IF($B$5=INDEX($B$6:$B$7,1,1),G40,'investissement réel'!D22) -> 1374000 | E154: 0 | F154: 1374000 | G154: 0
B155: TOTAL (F CFA) | F155: =SUM(F127:F154)+1800000 -> 20969850 | G155: =SUM(G127:G154) -> 1694337.048
B157: Calcul des recettes d'exploitation
B159: RECETTES D'EXPLOITATION
B160: Désignation | C160: Quantité | E160: Prix unitaire | F160: Recettes annuelles | G160: Recettes mensuelles | K160: 0.02
B161: Vente de glace par bacs 25 Kg | C161: =F112*(F73+H73)/25 -> 2859.264 | D161: Bacs | E161: 2500 | F161: =C161*E161 -> 7148160 | G161: =F161/12 -> 595680
B162: Vente de glace au kilo | C162: =F112*G73 -> 12614.4 | D162: Kilos | E162: 150 | F162: =C162*E162 -> 1892160 | G162: =F162/12 -> 157680
B163: Chargement de téléphone | C163: =300*20 -> 6000 | D163: Recharge | E163: 100 | F163: =C163*E163 -> 600000 | G163: =F163/12 -> 50000
B164: TOTAL (F CFA) | F164: =SUM(F161:F163) -> 9640320 | G164: =SUM(G161:G163) -> 803360
B166: Ressources et Financement des investissements
B168: BFR (Besoin en fonds de roulement)
B169: Type de tiers | C169: Client/fournisseur | D169: Délais de paiement / stocks (jours) | E169: Part des achats/ventes
B170: Transport glace | C170: founisseur | D170: 0 | E170: 1
B171: Acheteurs de glace | C171: client | D171: 0 | E171: 1
B173: Créances clients | C173: =((D171*F164/365*E171)) -> 0
B174: Crédit fournisseurs | C174: =(D170*F123*E170/365)*-1 -> 0
B175: Impact Stocks consommable | C175: 0
B176: Impact Stocks produits finis | C176: 0
B177: BFR | C177: 20000 | D177: F CFA
B180: SCHÉMA DE FINANCEMENT | F180: ECHEANCIER DE REMBOURSEMENT
B181: Désignation | C181: Part | D181: Montant total TTC | F181: Année | G181: Remboursement Capital | H181: Intérêts | I181: Reste | J181: Annuité | K181: mensualité
B182: Investissements | D182: =F155 -> 20969850 | F182: =IF(D189>10,"nb an insuffisant",IF(D189>=1,1,"-")) -> 1 | G182: =SUMIFS('Remboursement Mensualités'!C$14:C$133,'Remboursement Mensualités'!$F$14:$F$133,F182) -> 1941445.855 | H182: =SUMIFS('Remboursement Mensualités'!D$14:D$133,'Remboursement Mensualités'!$F$14:$F$133,F182) -> 2131066.506 | I182: =SUMIFS('Remboursement Mensualités'!E$14:E$133,'Remboursement Mensualités'!$F$14:$F$133,F182) -> 222646288.4 | J182: =G182+H182 -> 4072512.361 | K182: =J182/12 -> 339376.0301
B183: Besoin en fonds de roulement | D183: =C177 -> 20000 | F183: =IF(D189>10,"nb an insuffisant",IF(D189>=2,2,"-")) -> 2 | G183: =SUMIFS('Remboursement Mensualités'!C$14:C$133,'Remboursement Mensualités'!$F$14:$F$133,F183) -> 2174419.357 | H183: =SUMIFS('Remboursement Mensualités'!D$14:D$133,'Remboursement Mensualités'!$F$14:$F$133,F183) -> 1898093.004 | I183: =SUMIFS('Remboursement Mensualités'!E$14:E$133,'Remboursement Mensualités'!$F$14:$F$133,F183) -> 197860824 | J183: 4072512.361 | K183: =J183/12 -> 339376.0301
B184: COÛT TOTAL (F CFA) | D184: =SUM(D182:D183) -> 20989850 | F184: =IF(D189>10,"nb an insuffisant",IF(D189>=3,3,"-")) -> 3 | G184: =SUMIFS('Remboursement Mensualités'!C$14:C$133,'Remboursement Mensualités'!$F$14:$F$133,F184) -> 2435349.68 | H184: =SUMIFS('Remboursement Mensualités'!D$14:D$133,'Remboursement Mensualités'!$F$14:$F$133,F184) -> 1637162.681 | I184: =SUMIFS('Remboursement Mensualités'!E$14:E$133,'Remboursement Mensualités'!$F$14:$F$133,F184) -> 170101103.8 | J184: 4072512.361 | K184: 339376.0301
B185: Apport personnel | C185: =D185/D182 -> 0.06593180209 | D185: =F133+F134 -> 1382580 | F185: =IF(D189>10,"nb an insuffisant",IF(D189>=4,4,"-")) -> 4 | G185: =SUMIFS('Remboursement Mensualités'!C$14:C$133,'Remboursement Mensualités'!$F$14:$F$133,F185) -> 2727591.642 | H185: =SUMIFS('Remboursement Mensualités'!D$14:D$133,'Remboursement Mensualités'!$F$14:$F$133,F185) -> 1344920.719 | I185: =SUMIFS('Remboursement Mensualités'!E$14:E$133,'Remboursement Mensualités'!$F$14:$F$133,F185) -> 139010217.2 | J185: 4072512.361 | K185: 339376.0301
B186: Subvention | C186: 0 | D186: =C186*D184 -> 0 | F186: =IF(D189>10,"nb an insuffisant",IF(D189>=5,5,"-")) -> 5 | G186: =SUMIFS('Remboursement Mensualités'!C$14:C$133,'Remboursement Mensualités'!$F$14:$F$133,F186) -> 3054902.639 | H186: =SUMIFS('Remboursement Mensualités'!D$14:D$133,'Remboursement Mensualités'!$F$14:$F$133,F186) -> 1017609.722 | I186: =SUMIFS('Remboursement Mensualités'!E$14:E$133,'Remboursement Mensualités'!$F$14:$F$133,F186) -> 104188424.2 | J186: 4072512.361 | K186: 339376.0301
B187: Emprunt | C187: =100%-C185-C186 -> 0.9340681979 | D187: =C187*D182 -> 19587270 | F187: =IF(D189>10,"nb an insuffisant",IF(D189>=6,6,"-")) -> 6 | G187: =SUMIFS('Remboursement Mensualités'!C$14:C$133,'Remboursement Mensualités'!$F$14:$F$133,F187) -> 3421490.956 | H187: =SUMIFS('Remboursement Mensualités'!D$14:D$133,'Remboursement Mensualités'!$F$14:$F$133,F187) -> 651021.4055 | I187: =SUMIFS('Remboursement Mensualités'!E$14:E$133,'Remboursement Mensualités'!$F$14:$F$133,F187) -> 65188016.07 | J187: 4072512.361 | K187: 339376.0301
B188: Taux d'interet annuel de l'emprunt % | D188: 0.12 | F188: =IF($D$189>10,"nb an insuffisant",IF($D$189>=7,7,"-")) -> 7 | G188: =SUMIFS('Remboursement Mensualités'!C$14:C$133,'Remboursement Mensualités'!$F$14:$F$133,F188) -> 3832069.87 | H188: =SUMIFS('Remboursement Mensualités'!D$14:D$133,'Remboursement Mensualités'!$F$14:$F$133,F188) -> 240442.4908 | I188: =SUMIFS('Remboursement Mensualités'!E$14:E$133,'Remboursement Mensualités'!$F$14:$F$133,F188) -> 21507558.94 | J188: 4072512.361 | K188: 339376.0301
B189: Remboursement de l'emprunt (années) | D189: 7 | F189: =IF(D190>10,"nb an insuffisant",IF(D190>=7,7,"-")) -> - | G189: =SUMIFS('Remboursement Mensualités'!C$14:C$133,'Remboursement Mensualités'!$F$14:$F$133,F189) -> 0 | H189: =SUMIFS('Remboursement Mensualités'!D$14:D$133,'Remboursement Mensualités'!$F$14:$F$133,F189) -> 0 | I189: =SUMIFS('Remboursement Mensualités'!E$14:E$133,'Remboursement Mensualités'!$F$14:$F$133,'Table rentabilité optimisé'!$F189) -> 0 | J189: =SUMIFS('Remboursement Mensualités'!B$14:B$133,'Remboursement Mensualités'!$F$14:$F$133,'Table rentabilité optimisé'!$F189) -> 0 | K189: 0
F190: =IF(D189>10,"nb an insuffisant",IF(D189>=9,9,"-")) -> - | G190: =SUMIFS('Remboursement Mensualités'!C$14:C$133,'Remboursement Mensualités'!$F$14:$F$133,'Table rentabilité optimisé'!$F190) -> 0 | H190: =SUMIFS('Remboursement Mensualités'!D$14:D$133,'Remboursement Mensualités'!$F$14:$F$133,'Table rentabilité optimisé'!$F190) -> 0 | I190: =SUMIFS('Remboursement Mensualités'!E$14:E$133,'Remboursement Mensualités'!$F$14:$F$133,'Table rentabilité optimisé'!$F190) -> 0 | J190: =SUMIFS('Remboursement Mensualités'!B$14:B$133,'Remboursement Mensualités'!$F$14:$F$133,'Table rentabilité optimisé'!$F190) -> 0 | K190: 0
F191: =IF(D189>10,"nb an insuffisant",IF(D189>=10,"Année 10","-")) -> - | G191: =SUMIFS('Remboursement Mensualités'!C$14:C$133,'Remboursement Mensualités'!$F$14:$F$133,'Table rentabilité optimisé'!$F191) -> 0 | H191: =SUMIFS('Remboursement Mensualités'!D$14:D$133,'Remboursement Mensualités'!$F$14:$F$133,'Table rentabilité optimisé'!$F191) -> 0 | I191: =SUMIFS('Remboursement Mensualités'!E$14:E$133,'Remboursement Mensualités'!$F$14:$F$133,'Table rentabilité optimisé'!$F191) -> 0 | J191: =SUMIFS('Remboursement Mensualités'!B$14:B$133,'Remboursement Mensualités'!$F$14:$F$133,'Table rentabilité optimisé'!$F191) -> 0 | K191: 0
F192: TOTAL | G192: =SUM(G182:G191) -> 19587270 | H192: =SUM(H182:H191) -> 8920316.529 | J192: =SUM(J182:J191) -> 28507586.53 | K192: =SUM(K182:K191) -> 2375632.211
B195: Ressources et Financement des investissements
B197: RESULTAT BRUT D'EXPLOITATION (EBE)
B198: Désignation / Durée (années) | C198: 0 | D198: 1 | E198: 2 | F198: 3 | G198: 4 | H198: 5 | I198: 6 | J198: 7 | K198: 8 | L198: 9 | M198: Total
B199: Recettes | D199: =F164 -> 9640320 | E199: =D199+($K$160*D199) -> 9833126.4 | F199: 10029788.93 | G199: 10230384.71 | H199: 10434992.4 | I199: 10643692.25 | J199: 10856566.09 | K199: 11073697.42 | L199: 11295171.36 | M199: =SUM(C199:L199) -> 94037739.56
B200: Dépenses | D200: =F123 -> 1560000 | E200: =D200+($K$118*D200) -> 1591200 | F200: 1623024 | G200: 1655484.48 | H200: 1688594.17 | I200: 1722366.053 | J200: 1756813.374 | K200: 1791949.642 | L200: 1827788.634 | M200: 15217220.35
B201: Amortissements | C201: 0 | D201: =$G$155 -> 1694337.048 | E201: =$G$155 -> 1694337.048 | F201: 1694337.048 | G201: 1694337.048 | H201: 1694337.048 | I201: 1694337.048 | J201: 1694337.048 | K201: 1694337.048 | L201: 1694337.048 | M201: 15249033.43
B202: Remboursement emprunt | C202: 0 | D202: =IFERROR(INDEX($J$182:$J$191,MATCH(D198,$F$182:$F$191,0)),0) -> 4072512.361 | E202: =IFERROR(INDEX($J$182:$J$191,MATCH(E198,$F$182:$F$191,0)),0) -> 4072512.361 | F202: 4072512.361 | G202: 4072512.361 | H202: 4072512.361 | I202: 4072512.361 | J202: 4072512.361 | K202: 0 | L202: 0 | M202: 28507586.53
B203: Bénéfice avant impôts (EBITDA) | C203: 0 | D203: =D199-SUM(D200:D202) -> 2313470.591 | E203: =E199-SUM(E200:E202) -> 2475076.991 | F203: 2639915.519 | G203: 2808050.818 | H203: 2979548.822 | I203: 3154476.787 | J203: 3332903.311 | K203: 7587410.726 | L203: 7773045.682 | M203: 35063899.25
B204: Impôts sur le bénéfice | C204: 0 | D204: =IF(D203<0,0,0.3*D203) -> 694041.1773 | E204: =IF(E203<0,0,0.3*E203) -> 742523.0973 | F204: 791974.6557 | G204: 842415.2453 | H204: 893864.6467 | I204: 946343.036 | J204: 999870.9932 | K204: 2276223.218 | L204: 2331913.705 | M204: 10519169.77
B205: Bénéfice après impôts | C205: 0 | D205: =D203-D204 -> 1619429.414 | E205: 1732553.894 | F205: 1847940.863 | G205: 1965635.572 | H205: 2085684.176 | I205: 2208133.751 | J205: 2333032.318 | K205: 5311187.508 | L205: 5441131.977 | M205: 24544729.47
B206: Trésorerie | C206: =C199-C200 -> 0 | D206: =C206+D205 -> 1619429.414 | E206: 3351983.308 | F206: 5199924.171 | G206: 7165559.743 | H206: 9251243.919 | I206: 11459377.67 | J206: 13792409.99 | K206: 19103597.5 | L206: 24544729.47
B207: Cash Flows | C207: 0 | D207: =D205+D202-($H$192/$D$189) -> 4417610.842 | E207: =E205+E202-($H$192/$D$189) -> 4530735.322 | F207: 4646122.292 | G207: 4763817.001 | H207: 4883865.604 | I207: 5006315.179 | J207: 5131213.746 | K207: 4036856.576 | L207: 4166801.045
B208: Cash Flows cumulés | C208: =-C200 -> 0 | D208: =C208+D207 -> 4417610.842 | E208: 8948346.165 | F208: 13594468.46 | G208: 18358285.46 | H208: 23242151.06 | I208: 28248466.24 | J208: 33379679.99 | K208: 37416536.56 | L208: 41583337.61
B211: Indicateurs économiques
B213: VAN | C213: =NPV(F213,IF(D198<=H213,D207,0),IF(E198<=H213,E207,0),IF(F198<=H213,F207,0),IF(G198<=H213,G207,0),IF(H198<=H213,H207,0),IF(I198<=H213,I207,0),IF(J198<=H213,J207,0),IF(K198<=H213,K207,0),IF(L198<=H213,L207,0))-D182 -> 11906952.38 | D213: FCFA | E213: Taux d'actualisation | F213: 0.05 | G213: Durée VAN (ans) | H213: 9 | N213: =-D182+IF(H213>=D198,(D205+D202-H192/D189)*((1+F213)^-1),0)+IF(H213>=E198,(E205+E202-H192/D189)*((1+F213)^-2),0)+IF(H213>=F198,(F205+F202-H192/D189)*((1+F213)^-3),0)+IF(H213>=G198,(G205+G202-H192/D189)*((1+F213)^-4),0)+IF(H213>=H198,(H205+H202-H192/D189)*((1+F213)^-5),0)+IF(H213>=I198,(I205+I202-H192/D189)*((1+F213)^-6),0)+IF(H213>=J198,(J205+J202-H192/D189)*((1+F213)^-7),0)+IF(H213>=K198,(K205+K202-H192/D189)*((1+F213)^-8),0)+IF(H213>=L198,(L205+L202-H192/D189)*((1+F213)^-9),0) -> 11906952.38 | O213: calcul VAN
B214: TRI | C214: =IRR(N214:W214) -> 0.1645671787 | N214: =-D182 -> -20969850 | O214: =IF(D198<=H213,D207,0) -> 4417610.842 | P214: =IF(E198<=H213,E207,0) -> 4530735.322 | Q214: =IF(F198<=H213,F207,0) -> 4646122.292 | R214: =IF(G198<=H213,G207,0) -> 4763817.001 | S214: =IF(H198<=H213,H207,0) -> 4883865.604 | T214: =IF(I198<=H213,I207,0) -> 5006315.179 | U214: =IF(J198<=H213,J207,0) -> 5131213.746 | V214: =IF(K198<=H213,K207,0) -> 4036856.576 | W214: =IF(L198<=H213,L207,0) -> 4166801.045
B215: IPI | C215: =SUM(O214:W214)/D182 -> 1.983005964 | D215: ="Pour 1000 CFA investis, on récupère "&ROUND(N215,0)&" CFA" -> Pour 1000 CFA investis, on récupère 983 CFA | N215: =(C215-1)*1000 -> 983.0059637
B216: DCRI | C216: =N216+(-P216/(O216-P216)) ->  | D216: ="Le délai de récupération est de "&ROUNDDOWN(C216,0)&" ans et "&ROUNDDOWN((C216-ROUNDDOWN(C216,0))*12,0)&" mois" ->  | N216: =IF(AND(L208<0,L198<=H213),L198,IF(AND(K208<0,K198<=H213),K198,IF(AND(J208<0,J198<=H213),J198,IF(AND(I208<0,I198<=H213),I198,IF(AND(H208<0,H198<=H213),H198,IF(AND(G208<0,G198<=H213),G198,IF(AND(F208<0,F198<=H213),F198,IF(AND(E208<0,E198<=H213),E198,IF(AND(D208<0,D198<=H213),D198,IF(AND(C208<0,C198<=H213),C198)))))))))) -> FALSE | O216: =INDEX(C208:L208,MATCH(INDEX(C198:L198,MATCH(P216,C208:L208,0))+1,C198:L198,0)) ->  | P216: =IF(AND(L208<0,L198<=H213),L208,IF(AND(K208<0,K198<=H213),K208,IF(AND(J208<0,J198<=H213),J208,IF(AND(I208<0,I198<=H213),I208,IF(AND(H208<0,H198<=H213),H208,IF(AND(G208<0,G198<=H213),G208,IF(AND(F208<0,F198<=H213),F208,IF(AND(E208<0,E198<=H213),E208,IF(AND(D208<0,D198<=H213),D208,IF(AND(C208<0,C198<=H213),C208)))))))))) -> FALSE
B217: DSCR | C217: =(D199-D200)/(D202) -> 1.984111841

Sheet investissement réel
B3: Désignation | C3: Quantité | D3: Prix unitaire TTC | E3: Montant Total TTC | F3: Durée de vie (an) | G3: Amortissement annuel
B4: Machine à glace | C4: 1 | D4: 5100000 | E4: =C4*D4 -> 5100000 | F4: 10 | G4: 510000
B5: Kit Lorentz PS150 Pompe | C5: 1 | D5: 1403000 | E5: =C5*D5 -> 1403000 | F5: 10 | G5: 140300
B6: Kit congélateur solaire | C6: 1 | D6: 1248000 | E6: 1248000 | F6: 10 | G6: 124800
B7: Pompe surpresseur | C7: 1 | D7: 550000 | E7: 550000 | F7: 10 | G7: 55000
B8: Ballon surpresseur | C8: 1 | D8: 225000 | E8: 225000 | F8: 10 | G8: 22500
B9: Refroidisseur | C9: 1 | D9: 415000 | E9: 415000 | F9: 10 | G9: 41500
B10: Puits | C10: 1 | D10: 500000 | E10: 500000 | F10: 30 | G10: 16666.66667
B11: Local technique | C11: 1 | D11: 2206450 | E11: =C11*D11*I11 -> 882580 | F11: 30 | G11: 29419.33333 | H11: Part des locaux dédiée au projet | I11: 0.4
B12: Modules PV | C12: 27 | D12: 50000 | E12: 1350000 | F12: 20 | G12: 67500
B13: Support aluminium | C13: 27 | D13: 17000 | E13: 459000 | F13: 20 | G13: 22950
B14: Batterie | C14: 24 | D14: 136000 | E14: 3264000 | F14: 7 | G14: 466285.7143
B15: Régulateur | C15: 2 | D15: 315000 | E15: 630000 | F15: 10 | G15: 63000
B16: Onduleur | C16: 1 | D16: 1426500 | E16: =C16*D16 -> 1426500 | F16: 10 | G16: 142650
B17: Parafoudre | C17: 2 | D17: 12510 | E17: 25020 | F17: 15 | G17: 1668
B18: Ventilateurs | C18: 1 | D18: 15000 | E18: 15000 | F18: 10 | G18: 1500
B19: Lampes | C19: 8 | D19: 2500 | E19: 20000 | F19: 1 | G19: 20000
B20: Ensemble prise téléphones | C20: 1 | D20: 32750 | E20: 32750 | F20: 15 | G20: 2183.333333
B21: Câbles et accessoires | C21: 1 | D21: 250000 | E21: =C21*D21 -> 250000 | F21: 20 | G21: 12500
B22: Installation & transport équipements | C22: 1 | D22: 1374000 | E22: 1374000 | F22: 0 | G22: 0
B23: TOTAL (F CFA) | E23: =SUM(E4:E22)+1800000 -> 20969850 | G23: =SUM(G4:G22) -> 1740423.048

Sheet Remboursement Mensualités (hidden)
A1: Remboursement de prêt
A2: Taux annuel | B2: ='Table rentabilité optimisé'!D188 -> 0.12
A3: Capital emprunté | B3: ='Table rentabilité optimisé'!D187 -> 19587270
A4: Durée du prêt (en année) | B4: ='Table rentabilité optimisé'!D189 -> 7 | C4: =B4*12 -> 84
A5: Mensualité à régler | B5: =-PMT((1+B2)^(1/12)-1,B4*12,B3) -> 339376.0301 | C5: Formule mensualité | D5: =-VPM((1+B2)^(1/12)-1;B4*12;B3)
A7: Décomposition de la mensualité
A8: Remboursement du principal | B8: =-PPMT((1+B2)^(1/12)-1,1,B4*12,B3) -> 153516.4809 | C8: Formule principal | D8: =-PRINCPER((1+B2)^(1/12)-1;1;B4*12;B3)
A9: Remboursement des interêts | B9: =-IPMT((1+B2)^(1/12)-1,1,B4*12,B3) -> 185859.5492 | C9: Formule intérêt | D9: =-INTPER((1+B2)^(1/12)-1;1;B4*12;B3)
A12: Dans les formules ci-dessous Taux de période = TP = (1+$B$2)^(1/12)-1
A13: Périodes | B13: Mensualité | C13: Capital | D13: Intérêts | E13: Reste (ou résiduel) | F13: Années
A14: =IF(B4<>0,1,"-") -> 1 | B14: =IF(A14<>"-",C14+D14,"") -> 339376.0301 | C14: =IF(A14<>"-",-PPMT((1+$B$2)^(1/12)-1,A14,$B$4*12,$B$3),"") -> 153516.4809 | D14: =IF(A14<>"-",-IPMT((1+$B$2)^(1/12)-1,A14,$B$4*12,$B$3),"") -> 185859.5492 | E14: =IF(A14<>"-",$B$3+CUMPRINC((1+$B$2)^(1/12)-1,$B$4*12,$B$3,1,A14,0),"") -> 19433753.52 | F14: =IF(A14<>"-",1,"") -> 1 | G14: =IF(A14<>"-",1,"") -> 1
A15: =IF(AND($B$4<>0,A14<$C$4),A14+1,"-") -> 2 | B15: 339376.0301 | C15: =IF(A15<>"-",-PPMT((1+$B$2)^(1/12)-1,A15,$B$4*12,$B$3),"") -> 154973.167 | D15: 184402.8631 | E15: 19278780.35 | F15: =IF(A15<>"-",IF(G14<G15,F14,F14+1),"") -> 1 | G15: =IF(A15="-","",IF(G14<12,G14+1,1)) -> 2
A16: 3 | B16: 339376.0301 | C16: =IF(A16<>"-",-PPMT((1+$B$2)^(1/12)-1,A16,$B$4*12,$B$3),"") -> 156443.6753 | D16: 182932.3548 | E16: 19122336.68 | F16: 1 | G16: 3
A17: 4 | B17: 339376.0301 | C17: 157928.137 | D17: 181447.8932 | E17: 18964408.54 | F17: 1 | G17: 4
A18: 5 | B18: 339376.0301 | C18: 159426.6843 | D18: 179949.3458 | E18: 18804981.86 | F18: 1 | G18: 5
A19: 6 | B19: 339376.0301 | C19: 160939.4511 | D19: 178436.579 | E19: 18644042.4 | F19: 1 | G19: 6
A20: 7 | B20: 339376.0301 | C20: 162466.5723 | D20: 176909.4578 | E20: 18481575.83 | F20: 1 | G20: 7
A21: 8 | B21: 339376.0301 | C21: 164008.1839 | D21: 175367.8462 | E21: 18317567.65 | F21: 1 | G21: 8
A22: 9 | B22: 339376.0301 | C22: 165564.4236 | D22: 173811.6065 | E22: 18152003.22 | F22: 1 | G22: 9
A23: 10 | B23: 339376.0301 | C23: 167135.4302 | D23: 172240.5999 | E23: 17984867.79 | F23: 1 | G23: 10
A24: 11 | B24: 339376.0301 | C24: 168721.3437 | D24: 170654.6865 | E24: 17816146.45 | F24: 1 | G24: 11
A25: 12 | B25: 339376.0301 | C25: 170322.3055 | D25: 169053.7246 | E25: 17645824.15 | F25: 1 | G25: 12
A26: 13 | B26: 339376.0301 | C26: 171938.4586 | D26: 167437.5715 | E26: 17473885.69 | F26: 2 | G26: 1
A27: 14 | B27: 339376.0301 | C27: 173569.9471 | D27: 165806.083 | E27: 17300315.74 | F27: 2 | G27: 2
A28: 15 | B28: 339376.0301 | C28: 175216.9164 | D28: 164159.1138 | E28: 17125098.82 | F28: 2 | G28: 3
A29: 16 | B29: 339376.0301 | C29: 176879.5134 | D29: 162496.5167 | E29: 16948219.31 | F29: 2 | G29: 4
A30: 17 | B30: 339376.0301 | C30: 178557.8865 | D30: 160818.1436 | E30: 16769661.42 | F30: 2 | G30: 5
A31: 18 | B31: 339376.0301 | C31: 180252.1853 | D31: 159123.8448 | E31: 16589409.24 | F31: 2 | G31: 6
A32: 19 | B32: 339376.0301 | C32: 181962.5609 | D32: 157413.4692 | E32: 16407446.68 | F32: 2 | G32: 7
A33: 20 | B33: 339376.0301 | C33: 183689.166 | D33: 155686.8641 | E33: 16223757.51 | F33: 2 | G33: 8
A34: 21 | B34: 339376.0301 | C34: 185432.1545 | D34: 153943.8756 | E34: 16038325.36 | F34: 2 | G34: 9
A35: 22 | B35: 339376.0301 | C35: 187191.6818 | D35: 152184.3483 | E35: 15851133.67 | F35: 2 | G35: 10
A36: 23 | B36: 339376.0301 | C36: 188967.9049 | D36: 150408.1252 | E36: 15662165.77 | F36: 2 | G36: 11
A37: 24 | B37: 339376.0301 | C37: 190760.9822 | D37: 148615.0479 | E37: 15471404.79 | F37: 2 | G37: 12
A38: 25 | B38: 339376.0301 | C38: 192571.0737 | D38: 146804.9564 | E38: 15278833.71 | F38: 3 | G38: 1
A39: 26 | B39: 339376.0301 | C39: 194398.3407 | D39: 144977.6894 | E39: 15084435.37 | F39: 3 | G39: 2
A40: 27 | B40: 339376.0301 | C40: 196242.9463 | D40: 143133.0838 | E40: 14888192.43 | F40: 3 | G40: 3
A41: 28 | B41: 339376.0301 | C41: 198105.055 | D41: 141270.9751 | E41: 14690087.37 | F41: 3 | G41: 4
A42: 29 | B42: 339376.0301 | C42: 199984.8328 | D42: 139391.1973 | E42: 14490102.54 | F42: 3 | G42: 5
A43: 30 | B43: 339376.0301 | C43: 201882.4475 | D43: 137493.5826 | E43: 14288220.09 | F43: 3 | G43: 6
A44: 31 | B44: 339376.0301 | C44: 203798.0683 | D44: 135577.9619 | E44: 14084422.02 | F44: 3 | G44: 7
A45: 32 | B45: 339376.0301 | C45: 205731.8659 | D45: 133644.1642 | E45: 13878690.16 | F45: 3 | G45: 8
A46: 33 | B46: 339376.0301 | C46: 207684.013 | D46: 131692.0171 | E46: 13671006.14 | F46: 3 | G46: 9
A47: 34 | B47: 339376.0301 | C47: 209654.6836 | D47: 129721.3465 | E47: 13461351.46 | F47: 3 | G47: 10
A48: 35 | B48: 339376.0301 | C48: 211644.0535 | D48: 127731.9766 | E48: 13249707.41 | F48: 3 | G48: 11
A49: 36 | B49: 339376.0301 | C49: 213652.3001 | D49: 125723.73 | E49: 13036055.11 | F49: 3 | G49: 12
A50: 37 | B50: 339376.0301 | C50: 215679.6025 | D50: 123696.4276 | E50: 12820375.5 | F50: 4 | G50: 1
A51: 38 | B51: 339376.0301 | C51: 217726.1416 | D51: 121649.8885 | E51: 12602649.36 | F51: 4 | G51: 2
A52: 39 | B52: 339376.0301 | C52: 219792.0999 | D52: 119583.9302 | E52: 12382857.26 | F52: 4 | G52: 3
A53: 40 | B53: 339376.0301 | C53: 221877.6616 | D53: 117498.3685 | E53: 12160979.6 | F53: 4 | G53: 4
A54: 41 | B54: 339376.0301 | C54: 223983.0128 | D54: 115393.0173 | E54: 11936996.59 | F54: 4 | G54: 5
A55: 42 | B55: 339376.0301 | C55: 226108.3412 | D55: 113267.6889 | E55: 11710888.25 | F55: 4 | G55: 6
A56: 43 | B56: 339376.0301 | C56: 228253.8364 | D56: 111122.1937 | E56: 11482634.41 | F56: 4 | G56: 7
A57: 44 | B57: 339376.0301 | C57: 230419.6898 | D57: 108956.3403 | E57: 11252214.72 | F57: 4 | G57: 8
A58: 45 | B58: 339376.0301 | C58: 232606.0946 | D58: 106769.9355 | E58: 11019608.63 | F58: 4 | G58: 9
A59: 46 | B59: 339376.0301 | C59: 234813.2456 | D59: 104562.7845 | E59: 10784795.38 | F59: 4 | G59: 10
A60: 47 | B60: 339376.0301 | C60: 237041.3399 | D60: 102334.6902 | E60: 10547754.04 | F60: 4 | G60: 11
A61: 48 | B61: 339376.0301 | C61: 239290.5761 | D61: 100085.454 | E61: 10308463.47 | F61: 4 | G61: 12
A62: 49 | B62: 339376.0301 | C62: 241561.1548 | D62: 97814.8753 | E62: 10066902.31 | F62: 5 | G62: 1
A63: 50 | B63: 339376.0301 | C63: 243853.2786 | D63: 95522.75152 | E63: 9823049.032 | F63: 5 | G63: 2
A64: 51 | B64: 339376.0301 | C64: 246167.1519 | D64: 93208.87825 | E64: 9576881.88 | F64: 5 | G64: 3
A65: 52 | B65: 339376.0301 | C65: 248502.981 | D65: 90873.04912 | E65: 9328378.899 | F65: 5 | G65: 4
A66: 53 | B66: 339376.0301 | C66: 250860.9743 | D66: 88515.05579 | E66: 9077517.925 | F66: 5 | G66: 5
A67: 54 | B67: 339376.0301 | C67: 253241.3422 | D67: 86134.68795 | E67: 8824276.583 | F67: 5 | G67: 6
A68: 55 | B68: 339376.0301 | C68: 255644.2968 | D68: 83731.73329 | E68: 8568632.286 | F68: 5 | G68: 7
A69: 56 | B69: 339376.0301 | C69: 258070.0526 | D69: 81305.97749 | E69: 8310562.233 | F69: 5 | G69: 8
A70: 57 | B70: 339376.0301 | C70: 260518.8259 | D70: 78857.2042 | E70: 8050043.407 | F70: 5 | G70: 9
A71: 58 | B71: 339376.0301 | C71: 262990.8351 | D71: 76385.19501 | E71: 7787052.572 | F71: 5 | G71: 10
A72: 59 | B72: 339376.0301 | C72: 265486.3007 | D72: 73889.72943 | E72: 7521566.271 | F72: 5 | G72: 11
A73: 60 | B73: 339376.0301 | C73: 268005.4452 | D73: 71370.58489 | E73: 7253560.826 | F73: 5 | G73: 12
A74: 61 | B74: 339376.0301 | C74: 270548.4934 | D74: 68827.53672 | E74: 6983012.333 | F74: 6 | G74: 1
A75: 62 | B75: 339376.0301 | C75: 273115.672 | D75: 66260.35809 | E75: 6709896.661 | F75: 6 | G75: 2
A76: 63 | B76: 339376.0301 | C76: 275707.2101 | D76: 63668.82003 | E76: 6434189.451 | F76: 6 | G76: 3
A77: 64 | B77: 339376.0301 | C77: 278323.3387 | D77: 61052.6914 | E77: 6155866.112 | F77: 6 | G77: 4
A78: 65 | B78: 339376.0301 | C78: 280964.2912 | D78: 58411.73887 | E78: 5874901.821 | F78: 6 | G78: 5
A79: 66 | B79: 339376.0301 | C79: 283630.3032 | D79: 55745.72689 | E79: 5591271.518 | F79: 6 | G79: 6
A80: 67 | B80: 339376.0301 | C80: 286321.6124 | D80: 53054.41767 | E80: 5304949.905 | F80: 6 | G80: 7
A81: 68 | B81: 339376.0301 | C81: 289038.4589 | D81: 50337.57118 | E81: 5015911.446 | F81: 6 | G81: 8
A82: 69 | B82: 339376.0301 | C82: 291781.085 | D82: 47594.94509 | E82: 4724130.361 | F82: 6 | G82: 9
A83: 70 | B83: 339376.0301 | C83: 294549.7353 | D83: 44826.29479 | E83: 4429580.626 | F83: 6 | G83: 10
A84: 71 | B84: 339376.0301 | C84: 297344.6568 | D84: 42031.37335 | E84: 4132235.969 | F84: 6 | G84: 11
A85: 72 | B85: 339376.0301 | C85: 300166.0986 | D85: 39209.93147 | E85: 3832069.87 | F85: 6 | G85: 12
A86: 73 | B86: 339376.0301 | C86: 303014.3126 | D86: 36361.71751 | E86: 3529055.558 | F86: 7 | G86: 1
A87: 74 | B87: 339376.0301 | C87: 305889.5527 | D87: 33486.47744 | E87: 3223166.005 | F87: 7 | G87: 2
A88: 75 | B88: 339376.0301 | C88: 308792.0753 | D88: 30583.95482 | E88: 2914373.93 | F88: 7 | G88: 3
A89: 76 | B89: 339376.0301 | C89: 311722.1394 | D89: 27653.89075 | E89: 2602651.791 | F89: 7 | G89: 4
A90: 77 | B90: 339376.0301 | C90: 314680.0062 | D90: 24696.02392 | E90: 2287971.784 | F90: 7 | G90: 5
A91: 78 | B91: 339376.0301 | C91: 317665.9396 | D91: 21710.0905 | E91: 1970305.845 | F91: 7 | G91: 6
A92: 79 | B92: 339376.0301 | C92: 320680.2059 | D92: 18695.82418 | E92: 1649625.639 | F92: 7 | G92: 7
A93: 80 | B93: 339376.0301 | C93: 323723.074 | D93: 15652.95611 | E93: 1325902.565 | F93: 7 | G93: 8
A94: 81 | B94: 339376.0301 | C94: 326794.8152 | D94: 12581.21489 | E94: 999107.7496 | F94: 7 | G94: 9
A95: 82 | B95: 339376.0301 | C95: 329895.7036 | D95: 9480.326555 | E95: 669212.046 | F95: 7 | G95: 10
A96: 83 | B96: 339376.0301 | C96: 333026.0156 | D96: 6350.014534 | E96: 336186.0305 | F96: 7 | G96: 11
A97: 84 | B97: 339376.0301 | C97: 336186.0305 | D97: 3189.999631 | E97: -3.725290298e-09 | F97: 7 | G97: 12
A98: -
A99: -
A100: -
A101: -
A102: -
A103: -
A104: -
A105: -
A106: -
A107: -
A108: -
A109: -
A110: -
A111: -
A112: -
A113: -
A114: -
A115: -
A116: -
A117: -
A118: -
A119: -
A120: -
A121: -
A122: -
A123: -
A124: -
A125: -
A126: -
A127: -
A128: -
A129: -
A130: -
A131: -
A132: -
A133: -
